bitfinex-derivatives/quotes_ETHF0:USTF0_20260201
["timestamp","ask_amount","ask_price","bid_price","bid_amount"]
[1769980943058,0.00323501,2303.4,2302.1,0.16372938]
[1769980943256,0.15810248,2303.4,2302.1,0.16372938]
[1769980946958,0.15486747,2303.1,2301.5,2.71372938]
[1769980947165,0.15486747,2303.1,2301.6,0.16372938]
[1769980952769,0.15486747,2303.2,2301.7,0.16372938]
[1769980953271,0.15486747,2302.8,2301.4,0.16372938]
[1769980953871,0.15486747,2302.5,2301.1,0.16372938]
[1769980954468,0.15486747,2302.4,2301.1,0.16372938]
[1769980955166,2.52225353,2302.6,2301.1,0.16372938]
[1769980955367,3.912,2302.9,2301.2,0.16372938]
[1769980955764,2.677121,2303.2,2301.4,0.38120938]
[1769980955968,0.15486747,2303.2,2301.7,0.16372938]
[1769980956169,0.15486747,2303.2,2301.9,0.16372938]
[1769980956370,0.00323501,2303.4,2302.1,0.16372938]
[1769980957367,2.52225353,2304.2,2302.6,0.16466779]
[1769980957578,0.15486747,2304.4,2302.8,0.16466779]
[1769980958073,2.68034796,2304.6,2302.8,0.16466779]
[1769980958269,38.05336051,2304.7,2302.8,0.16466779]
[1769980958270,0.15809443,2304.5,2302.8,0.16466779]
[1769980958474,0.15809443,2304.4,2302.8,0.16786363]
[1769980958866,0.15809443,2304.3,2302.8,0.16786363]
[1769980959072,0.15809443,2303.9,2302.8,0.16786363]
[1769980959375,0.15809443,2303.7,2302.8,0.00319584]
[1769980959574,0.16132944,2303.6,2302.8,0.00319584]
[1769980959974,0.00323501,2303.5,2302.8,0.00319584]
[1769980960474,0.00323501,2303.4,2302.8,0.00319584]
[1769980960672,0.00323501,2303.5,2302.8,0.00319584]
[1769980961268,0.00323501,2303.4,2302.8,0.00319584]
[1769980961472,0.00323501,2303.5,2302.8,0.00319584]
[1769980962068,0.00323501,2303.5,2302.8,0.16786363]
[1769980962275,0.15809443,2303.9,2302.8,0.16786363]
[1769980962572,0.16132944,2303.7,2302.8,0.00319584]
[1769980962770,2.68034796,2304.0,2302.8,0.16786363]
[1769980963072,2.7662,2304.4,2302.8,0.16786363]
[1769980963073,0.00362141,2304.5,2303.4,0.16466779]
[1769980963269,0.00362141,2304.5,2303.6,0.16466779]
[1769980963473,2.52225353,2305.2,2303.6,0.16466779]
[1769980963774,0.15809443,2305.1,2303.6,0.16466779]
[1769980963972,2.52225353,2305.3,2303.6,0.16466779]
[1769980964172,38.21145494,2305.4,2303.6,0.16466779]
[1769980964173,0.15809443,2305.2,2303.6,0.16466779]
[1769980964470,0.16217874,2305.2,2303.6,0.16466779]
[1769980965772,0.00408431,2305.2,2303.6,0.38193779]
[1769980965979,0.00408431,2305.2,2303.9,0.1596609]
[1769980966674,2.74421809,2306.0,2304.1,0.1596609]
[1769980966675,0.16424271,2305.9,2304.1,0.1596609]
[1769980966874,0.22196456,2306.0,2304.2,0.1596609]
[1769980967070,0.22196456,2306.0,2304.6,0.1596609]
[1769980967378,0.22196456,2306.0,2304.8,0.1596609]
[1769980967674,0.16942761,2306.0,2304.8,0.16428963]
[1769980967874,0.17266262,2306.0,2304.9,2.7076609]
[1769980968074,0.17266262,2306.0,2304.8,0.00462873]
[1769980968271,0.16747772,2305.6,2304.8,0.00462873]
[1769980968476,0.00323501,2305.5,2304.3,6.6176609]
[1769980968776,0.16424271,2305.6,2304.4,0.1596609]
[1769980968972,0.16424271,2305.9,2304.4,0.1596609]
[1769980969373,0.0051849,2306.0,2304.4,0.1596609]
[1769980969678,0.16942761,2306.0,2304.7,0.1596609]
[1769980969875,0.16942761,2306.0,2304.9,0.1596609]
[1769980970377,0.0051849,2306.0,2304.9,0.1596609]
[1769980970578,0.16424271,2306.6,2304.9,0.1596609]
[1769980970976,0.16424271,2306.1,2304.9,2.7076609]
[1769980971374,5.07025353,2307.2,2304.9,2.548]
[1769980971375,0.16424271,2305.7,2304.9,2.548]
[1769980971574,0.1689389,2305.7,2304.9,2.548]
[1769980971775,0.00323501,2305.6,2304.9,2.548]
[1769980972478,0.00323501,2305.5,2304.9,2.548]
[1769980972679,0.00323501,2305.6,2304.9,2.548]
[1769980972876,0.00323501,2305.6,2304.8,3.909]
[1769980972877,0.16747772,2305.3,2304.8,3.909]
[1769980973077,0.00323501,2305.5,2304.8,3.909]
[1769980973480,0.00323501,2305.4,2304.8,3.909]
[1769980973774,0.16747772,2305.5,2304.8,3.909]
[1769980973977,0.00323501,2305.4,2304.8,3.909]
[1769980974775,0.00469619,2305.7,2304.8,4.0686609]
[1769980975278,0.00469619,2305.7,2304.9,0.1596609]
[1769980975477,0.16424271,2306.1,2304.9,0.1596609]
[1769980975678,0.16747772,2306.0,2304.9,0.1596609]
[1769980975979,0.16424271,2306.0,2304.9,0.1596609]
[1769980976179,0.16747772,2306.0,2304.9,0.1596609]
[1769980976375,0.17090551,2306.0,2304.9,0.1596609]
[1769980976576,0.16424271,2305.8,2304.8,3.909]
[1769980976777,0.00323501,2305.8,2304.8,3.909]
[1769980976973,0.00323501,2305.7,2304.8,3.909]
[1769980977177,0.16424271,2305.6,2304.4,0.0055927]
[1769980977379,0.16424271,2305.6,2304.5,6.455]
[1769980977580,0.16747772,2305.6,2304.5,6.455]
[1769980977779,0.00323501,2305.5,2304.5,6.6146609]
[1769980978180,0.16424271,2305.6,2304.5,6.6146609]
[1769980978476,0.16747772,2305.6,2304.5,6.6146609]
[1769980978676,0.00342779,2306.0,2304.6,0.1596609]
[1769980978677,0.16424271,2305.9,2304.6,0.1596609]
[1769980978877,0.1676705,2306.0,2304.6,0.1596609]
[1769980979076,0.16424271,2305.6,2304.6,0.1596609]
[1769980979279,0.16424271,2305.6,2304.5,6.455]
[1769980979474,0.16747772,2305.5,2304.5,6.455]
[1769980979679,0.16424271,2305.5,2304.5,6.455]
[1769980979975,0.16747772,2305.5,2304.5,6.455]
[1769980980176,0.00342779,2306.0,2304.6,0.1596609]
[1769980980377,0.16424271,2306.4,2305.2,0.1596609]
[1769980980583,0.16424271,2306.7,2305.2,0.1596609]
[1769980980982,0.16424271,2306.1,2304.9,0.15939276]
[1769980981387,0.16747772,2306.0,2304.9,0.15939276]
[1769980981583,0.16815738,2306.0,2304.9,0.15939276]
[1769980981784,0.16815738,2306.0,2304.7,6.453]
[1769980981785,0.16424271,2305.5,2304.7,6.453]
[1769980982284,0.16424271,2305.8,2304.8,0.15939276]
[1769980982484,0.16747772,2305.8,2304.8,0.15939276]
[1769980982684,0.00323501,2305.7,2304.8,0.15939276]
[1769980982885,0.00391467,2306.0,2304.8,0.15939276]
[1769980983681,0.17139239,2306.0,2304.8,0.15939276]
[1769980983988,0.16747772,2305.7,2304.7,6.453]
[1769980984180,0.16424271,2305.7,2304.7,6.453]
[1769980984380,0.00323501,2305.4,2304.7,6.453]
[1769980984583,0.16424271,2305.2,2304.4,0.0055927]
[1769980984988,0.00323501,2305.2,2304.4,0.1652536]
[1769980985381,0.00391467,2306.0,2304.6,0.1596609]
[1769980985589,0.16815738,2306.0,2304.6,0.1596609]
[1769980985888,0.16424271,2305.9,2304.6,0.1596609]
[1769980986087,0.00323501,2305.8,2304.6,0.1596609]
[1769980986594,0.16424271,2305.9,2304.6,0.1596609]
[1769980988684,0.16424271,2305.9,2304.8,0.16089894]
[1769980988890,0.00391467,2306.0,2305.0,0.16089894]
[1769980989184,0.15809528,2305.9,2304.9,2.546]
[1769980989382,0.00323501,2305.7,2304.9,2.70689894]
[1769980989588,0.00323501,2305.8,2305.0,0.16089894]
[1769980989987,0.00391467,2306.0,2305.0,0.16089894]
[1769980990489,0.00714968,2306.0,2305.0,0.16089894]
[1769980990888,0.00323501,2305.7,2305.0,0.16089894]
[1769980991388,0.00323501,2305.6,2305.0,0.16089894]
[1769980991587,0.00323501,2305.7,2305.0,0.16089894]
[1769980992087,0.00323501,2305.5,2304.9,6.453]
[1769980992283,0.00323501,2305.7,2304.9,6.453]
[1769980992484,0.00323501,2305.7,2304.9,6.61389894]
[1769980992688,0.00323501,2305.6,2304.9,6.61389894]
[1769980992890,0.00323501,2305.7,2304.9,6.61389894]
[1769980993390,0.00323501,2305.6,2304.9,6.61389894]
[1769980993589,0.00323501,2305.8,2305.0,0.16089894]
[1769980994091,0.15877494,2306.0,2305.0,0.16089894]
[1769980994990,0.00391467,2306.0,2305.0,0.16089894]
[1769980995392,0.00391467,2306.0,2305.0,4.04691711]
[1769980995591,0.00391467,2306.0,2305.1,0.16089894]
[1769980996287,0.15877494,2306.0,2304.9,10.33901817]
[1769980996495,0.15486027,2305.9,2304.9,6.453]
[1769980996790,0.15486027,2305.8,2304.9,6.453]
[1769980997185,0.15486027,2305.7,2304.9,6.453]
[1769980999798,0.15486027,2305.4,2304.9,2.14785638]
[1769980999997,38.05336051,2305.7,2305.0,0.16650687]
[1769981000194,38.05336051,2305.9,2305.0,0.16650687]
[1769981000394,0.00391467,2306.0,2305.0,0.16650687]
[1769981000594,0.00391467,2306.0,2305.2,0.16665673]
[1769981001796,38.05336051,2306.7,2305.2,0.16665673]
[1769981001995,38.05336051,2306.5,2305.2,0.16665673]
[1769981002996,38.05646394,2306.5,2305.2,0.16665673]
[1769981003397,0.00310343,2306.5,2305.2,0.16665673]
[1769981003797,38.05816542,2306.5,2305.2,0.16665673]
[1769981003999,38.05336051,2306.3,2305.2,0.16665673]
[1769981004794,26.05071639,2306.3,2305.2,0.16665673]
[1769981004992,0.15486027,2307.2,2305.5,0.16089894]
[1769981005295,0.15486027,2307.6,2305.9,2.59610204]
[1769981005598,0.15486027,2307.6,2306.1,0.16089894]
[1769981005789,0.15486027,2307.5,2306.1,0.16089894]
[1769981005989,0.15486027,2307.3,2306.1,0.16564357]
[1769981006190,0.15486027,2307.3,2306.1,0.00474463]
[1769981006396,0.15486027,2307.3,2306.1,0.16564357]
[1769981009704,0.15486027,2307.2,2305.5,0.16089894]
[1769981010104,0.15486027,2306.8,2305.3,0.16089894]
[1769981010302,0.15486027,2306.7,2305.3,0.16089894]
[1769981010504,0.15486027,2306.6,2305.1,3.906]
[1769981010806,0.15486027,2306.5,2305.2,0.16089894]
[1769981011805,0.15486027,2306.4,2305.2,0.16089894]
[1769981015307,5.03262588,2306.8,2305.2,2.59610204]
[1769981015511,0.15486027,2307.0,2305.5,0.16089894]
[1769981015712,8.93862588,2307.1,2305.6,0.16089894]
[1769981015910,3.906,2307.1,2305.8,0.16089894]
[1769981016311,4.06086027,2307.1,2305.8,0.16089894]
[1769981017612,0.21693,2307.3,2305.8,0.16089894]
[1769981018012,0.37623804,2307.2,2305.8,0.16089894]
[1769981018217,0.15929804,2306.7,2305.8,0.16089894]
[1769981018916,0.15929804,2306.6,2305.5,2.69710565]
[1769981019415,0.21699,2306.7,2305.6,0.15210565]
[1769981021807,0.15929804,2306.9,2305.6,0.15210565]
[1769981022917,0.15929804,2306.8,2305.6,0.15210565]
[1769981023116,6.38012711,2307.1,2305.6,0.15210565]
[1769981023117,0.15929804,2307.1,2305.6,0.15210565]
[1769981023315,0.15929804,2307.0,2305.6,0.15210565]
[1769981023514,0.15929804,2306.9,2305.6,0.15210565]
[1769981024612,0.15929804,2306.8,2305.3,0.15210565]
[1769981024917,0.15929804,2306.7,2305.3,0.15210565]
[1769981025917,0.16208562,2306.5,2305.3,0.15210565]
[1769981031729,0.37908562,2306.5,2305.3,0.15210565]
[1769981032224,0.217,2306.5,2305.3,0.15210565]
[1769981032527,2.71031289,2305.4,2304.5,2.59318361]
[1769981032827,2.71031289,2305.4,2303.9,6.47134248]
[1769981032828,0.2172,2304.4,2303.5,0.16636972]
[1769981033326,0.21715,2305.0,2304.2,0.16636972]
[1769981033527,3.71232041,2304.9,2304.2,0.17031703]
[1769981033722,0.22256138,2305.0,2304.3,0.16636972]
[1769981034025,0.22256138,2305.0,2304.4,0.16636972]
[1769981034823,0.00541138,2305.0,2304.4,0.16636972]
[1769981035321,0.00541138,2305.0,2304.4,4.50316972]
[1769981035525,3.906,2305.7,2304.8,4.50692943]
[1769981035725,3.68377073,2305.6,2304.8,0.17012943]
[1769981035920,3.906,2305.7,2304.8,0.17012943]
[1769981036125,3.68334082,2305.6,2304.8,0.17012943]
[1769981036427,3.906,2305.7,2304.8,0.17012943]
[1769981036627,3.68271628,2305.6,2304.8,0.17012943]
[1769981036829,0.00510019,2305.6,2304.8,0.17012943]
[1769981037331,3.67651411,2305.5,2304.8,0.17012943]
[1769981037532,0.00510019,2305.6,2304.8,0.17012943]
[1769981037927,2.92744289,2305.2,2304.2,0.00394731]
[1769981038129,8.25928479,2305.1,2303.7,0.17015794]
[1769981038432,3.67715479,2305.0,2303.7,0.17015794]
[1769981038633,0.21717,2304.8,2303.7,0.17015794]
[1769981038930,3.67388639,2304.7,2303.7,0.17015794]
[1769981039121,0.21717,2304.8,2303.7,0.1733133]
[1769981039725,0.21717,2304.7,2303.7,0.1733133]
[1769981040324,0.21717,2304.7,2303.7,0.00315536]
[1769981040728,0.21718,2304.6,2303.7,0.00315536]
[1769981041428,0.21718,2304.6,2303.7,0.17231474]
[1769981041625,0.21713,2305.2,2304.1,0.16915938]
[1769981041824,0.21717,2304.8,2303.8,0.16915938]
[1769981042428,0.21718,2304.6,2303.8,0.16915938]
[1769981042734,2.71031289,2304.4,2303.5,0.16932006]
[1769981043030,0.21722,2304.2,2303.5,0.16932006]
[1769981043225,0.21722,2304.2,2302.9,6.454]
[1769981043226,0.21716,2304.8,2304.0,0.16932006]
[1769981043632,0.21716,2304.8,2304.1,4.3368]
[1769981043930,0.21716,2304.8,2304.1,4.34181285]
[1769981044832,0.21716,2304.8,2304.1,4.51108096]
[1769981046727,0.21716,2304.8,2303.5,0.16869363]
[1769981046728,2.71031289,2304.8,2303.5,0.16869363]
[1769981046929,0.2172,2304.4,2303.5,0.16869363]
[1769981047326,2.71031289,2304.8,2303.5,0.16869363]
[1769981047536,3.66004357,2304.7,2303.5,0.16869363]
[1769981047728,8.01204357,2304.6,2303.5,0.16869363]
[1769981047928,4.352,2304.6,2303.5,0.17403245]
[1769981048126,2.71031289,2304.4,2303.5,0.00533882]
[1769981049238,0.21724,2304.0,2303.5,0.00533882]
[1769981049426,0.21724,2304.0,2303.2,0.16870358]
[1769981050434,0.21724,2304.0,2303.2,0.17336526]
[1769981051230,0.21726,2303.8,2303.2,0.17336526]
[1769981051431,0.22166186,2303.8,2303.2,0.17336526]
[1769981052338,0.3768522,2303.5,2302.1,0.21742]
[1769981052634,0.21731,2303.2,2302.0,3.909]
[1769981052835,0.21727,2303.7,2302.0,3.909]
[1769981053035,0.21727,2303.6,2302.0,3.909]
[1769981053235,0.21727,2303.6,2302.0,3.91336038]
[1769981054338,0.21727,2303.6,2302.1,0.16271159]
[1769981054532,0.00440186,2303.8,2302.2,0.16271159]
[1769981054739,0.00440186,2303.8,2302.4,0.38010159]
[1769981054933,0.00440186,2303.8,2302.5,0.16271159]
[1769981058236,0.21724,2304.0,2302.5,0.16271159]
[1769981058237,2.91756679,2304.6,2302.6,0.16271159]
[1769981058431,3.71384227,2304.5,2302.8,0.16271159]
[1769981058638,0.21719,2304.6,2302.8,0.16271159]
[1769981058838,0.14625728,2304.9,2302.9,0.16271159]
[1769981059033,3.71274796,2304.8,2303.1,0.16271159]
[1769981059234,3.71274796,2304.7,2303.1,0.16271159]
[1769981059435,0.00347627,2304.8,2303.1,0.16271159]
[1769981059639,3.71594561,2304.7,2303.1,0.16271159]
[1769981059839,0.00347627,2304.8,2303.1,0.16271159]
[1769981060040,3.71593456,2304.7,2303.1,0.16271159]
[1769981060340,0.14625728,2304.5,2303.1,0.16271159]
[1769981061242,3.71729099,2304.4,2303.1,0.16271159]
[1769981061439,0.14625728,2304.5,2303.1,0.16271159]
[1769981061640,3.7181684,2304.4,2303.1,0.16271159]
[1769981061835,0.14625728,2304.5,2303.1,0.16271159]
[1769981062140,3.72489921,2304.4,2303.1,0.16271159]
[1769981062336,0.14725239,2303.3,2302.3,0.16271159]
[1769981062535,0.14725239,2303.1,2301.7,0.16271159]
[1769981062737,0.1472576,2302.9,2301.7,0.16271159]
[1769981062936,0.1472576,2302.9,2301.2,3.91]
[1769981062937,0.1472576,2302.7,2301.4,0.16271159]
[1769981063138,0.1472576,2302.5,2301.4,0.16271159]
[1769981063636,6.81847849,2303.0,2301.4,0.16764948]
[1769981063844,3.70346212,2302.9,2301.4,0.16764948]
[1769981064141,0.1472576,2302.7,2301.4,0.16764948]
[1769981064543,0.1472576,2302.5,2301.4,0.00493789]
[1769981064737,0.14927187,2302.3,2301.4,0.00493789]
[1769981065945,0.14927187,2302.1,2300.8,0.16271159]
[1769981066141,0.14433398,2301.9,2299.9,2.548]
[1769981066337,0.14433398,2301.7,2300.0,0.16271159]
[1769981066940,0.14433398,2301.7,2300.0,0.16667552]
[1769981066941,3.69507742,2301.6,2300.0,0.16667552]
[1769981067246,0.14501205,2301.8,2300.0,0.16667552]
[1769981067751,0.14501205,2301.6,2300.0,0.16667552]
[1769981069445,0.14500315,2301.5,2300.0,0.16667552]
[1769981069744,0.14500315,2301.4,2300.0,0.16667552]
[1769981069946,0.14841905,2301.4,2300.0,0.16667552]
[1769981072643,0.0034159,2301.4,2300.0,0.16667552]
[1769981074348,0.14693357,2301.4,2300.0,0.16667552]
[1769981074549,0.14485156,2301.2,2300.0,0.16667552]
[1769981074744,0.36237156,2301.1,2300.0,0.16667552]
[1769981075050,0.0034159,2301.4,2300.0,0.00018491]
[1769981075051,0.36240156,2300.7,2300.0,0.00018491]
[1769981075244,0.14485156,2300.6,2300.0,0.00018491]
[1769981076348,0.14485156,2300.4,2299.4,0.16271159]
[1769981076545,0.36243156,2300.4,2299.4,0.16271159]
[1769981077050,0.14682502,2300.3,2299.4,0.16271159]
[1769981077249,0.21758,2300.4,2299.4,0.16806422]
[1769981077451,0.14682502,2300.7,2299.4,0.16806422]
[1769981078049,0.14701086,2300.6,2299.4,0.16806422]
[1769981078450,0.21756,2300.7,2299.4,0.16806422]
[1769981079148,0.14772798,2300.6,2299.4,0.16806422]
[1769981082350,0.21756,2300.7,2299.4,0.16806422]
[1769981083854,0.15246059,2302.3,2300.0,0.16081291]
[1769981084048,0.21746,2301.7,2300.2,0.16081291]
[1769981084254,0.15246059,2301.6,2300.2,0.16081291]
[1769981084548,0.21746,2301.7,2300.2,0.16081291]
[1769981084747,0.00328774,2301.7,2300.2,0.16081291]
[1769981085656,0.15495162,2302.2,2300.5,0.15319603]
[1769981085857,0.15495162,2302.5,2300.7,0.15319603]
[1769981086857,0.15969713,2302.5,2300.7,0.15319603]
[1769981088753,0.15495162,2302.3,2300.7,0.15319603]
[1769981091257,0.15495162,2302.3,2300.9,0.15319603]
[1769981092354,0.00474551,2302.5,2301.1,0.15319603]
[1769981092555,0.15969713,2302.5,2301.1,0.15829983]
[1769981093958,0.15495162,2302.3,2301.1,0.15829983]
[1769981100563,0.00474551,2302.5,2301.1,0.15829983]
[1769981100760,0.00474551,2302.5,2301.3,0.15319603]
[1769981100958,0.00474551,2302.5,2301.4,0.15319603]
[1769981101264,0.15495162,2303.2,2301.7,0.15319603]
[1769981101465,0.15495162,2303.7,2302.0,0.15319603]
[1769981101661,0.15495162,2303.5,2302.0,0.15319603]
[1769981102265,0.15993718,2303.5,2302.0,0.15319603]
[1769981103362,0.15495162,2303.4,2302.0,0.15319603]
[1769981103757,0.15495162,2303.3,2302.0,0.15319603]
[1769981104265,0.15495162,2303.2,2302.0,0.15319603]
[1769981104471,0.15495162,2302.9,2301.7,0.15319603]
[1769981104866,0.15495162,2302.8,2301.4,4.06619603]
[1769981105065,0.15495162,2302.8,2301.5,0.15319603]
[1769981105568,0.15495162,2302.8,2301.4,3.913]
[1769981106470,0.15495162,2302.8,2301.5,0.15319603]
[1769981108464,0.16401024,2303.1,2301.7,0.15095484]
[1769981108662,0.16401024,2303.1,2301.6,0.21746]
[1769981108663,0.16401024,2302.9,2301.5,0.15095484]
[1769981108864,0.16401024,2302.7,2301.2,0.15095484]
[1769981109064,0.16401024,2303.2,2301.4,0.15095484]
[1769981109366,0.16401024,2302.9,2301.4,0.15095484]
[1769981109669,0.16401024,2302.7,2301.4,0.15095484]
[1769981109868,0.16401024,2302.7,2301.2,0.2175]
[1769981109869,0.16401024,2302.7,2301.2,0.36845484]
[1769981110068,0.16401024,2302.7,2301.3,0.15095484]
[1769981111272,0.16401024,2302.5,2301.3,0.15095484]
[1769981111770,2.65543908,2302.8,2301.3,0.15095484]
[1769981112064,0.16401024,2302.6,2301.3,0.15095484]
[1769981112368,0.16401024,2302.4,2301.3,0.15095484]
[1769981113469,0.16401024,2302.2,2301.3,0.15095484]
[1769981115273,0.16401024,2302.0,2301.1,0.0051038]
[1769981115471,0.16401024,2301.8,2301.1,0.0051038]
[1769981115770,0.16401024,2301.8,2300.3,0.15095484]
[1769981115771,3.70449388,2301.7,2300.3,0.15095484]
[1769981116070,0.16401024,2301.3,2300.3,0.15095484]
[1769981116772,0.16401024,2301.3,2300.3,0.1558959]
[1769981118765,0.0037324,2301.8,2300.5,0.15095484]
[1769981118969,0.16774264,2301.8,2300.5,0.15095484]
[1769981121773,0.0037324,2301.8,2300.5,0.36851484]
[1769981121973,0.0037324,2301.8,2300.6,0.15095484]
[1769981122767,0.0037324,2301.8,2300.6,0.36851484]
[1769981122970,0.0037324,2301.8,2300.7,0.15095484]
[1769981123376,0.16401024,2302.4,2300.9,0.15095484]
[1769981123676,0.16401024,2302.4,2301.1,0.15095484]
[1769981124378,0.16951849,2302.4,2301.1,0.15095484]
[1769981125976,0.00550825,2302.4,2301.1,0.15095484]
[1769981126677,0.16951849,2302.4,2301.1,0.15095484]
[1769981134177,0.00550825,2302.4,2301.1,0.15095484]
[1769981134481,0.16401024,2303.4,2302.1,0.15095484]
[1769981134783,0.16401024,2303.7,2302.2,0.15095484]
[1769981135085,0.16401024,2303.6,2302.2,0.15095484]
[1769981135382,0.00336846,2303.6,2302.2,0.1547593]
[1769981135880,0.1673787,2303.6,2302.2,0.1547593]
[1769981136381,0.1673787,2303.6,2302.4,0.15095484]
[1769981138576,0.00336846,2303.6,2302.4,0.15095484]
[1769981140285,0.16557846,2303.6,2302.4,0.15095484]
[1769981145482,0.00336846,2303.6,2302.5,0.15786955]
[1769981147789,0.16708534,2303.6,2302.5,0.15786955]
[1769981148092,0.16708534,2303.6,2302.3,0.15786955]
[1769981151390,0.00336846,2303.6,2302.5,0.15786955]
[1769981151785,0.16708534,2303.6,2302.5,0.15786955]
[1769981157991,0.16708534,2303.6,2302.4,3.911]
[1769981158191,0.16371688,2303.4,2302.4,3.911]
[1769981159191,0.16371688,2303.2,2302.4,3.911]
[1769981161798,0.16371688,2303.2,2302.4,4.06886955]
[1769981162798,0.16371688,2303.2,2302.4,3.911]
[1769981163298,0.16371688,2303.0,2302.4,3.911]
[1769981163898,0.16371688,2303.0,2302.2,0.16167401]
[1769981167600,0.16371688,2303.0,2302.2,0.00380446]
[1769981168094,0.15677693,2302.7,2301.5,0.16491749]
[1769981168294,0.15677693,2302.5,2301.5,0.16491749]
[1769981169097,0.15677693,2302.5,2301.5,0.16833828]
[1769981170500,2.51718252,2302.8,2301.5,0.16833828]
[1769981170799,0.15677693,2303.0,2301.8,0.16491749]
[1769981171001,0.15677693,2303.0,2302.0,0.16491749]
[1769981171198,0.15677693,2303.0,2301.9,2.549]
[1769981171698,0.15677693,2303.0,2301.9,2.71391749]
[1769981172093,0.15677693,2302.8,2301.9,2.71391749]
[1769981172293,0.15677693,2302.8,2302.0,0.16491749]
[1769981172699,2.67395945,2303.1,2302.0,0.16491749]
[1769981172903,3.71895045,2303.0,2302.0,0.16491749]
[1769981173197,0.15677693,2303.1,2302.0,0.16491749]
[1769981173399,3.71646239,2303.0,2302.0,0.16491749]
[1769981173600,0.15677693,2303.1,2302.0,0.16491749]
[1769981173797,3.87338126,2303.0,2302.0,0.16491749]
[1769981174097,0.15677693,2303.0,2302.0,0.16491749]
[1769981177506,0.15677693,2302.8,2301.7,0.16491749]
[1769981177797,0.15677693,2302.6,2301.7,0.16491749]
[1769981180507,0.15677693,2302.8,2301.7,0.16491749]
[1769981181107,3.8717214,2302.7,2301.7,0.16491749]
[1769981181409,0.15677693,2302.7,2301.7,0.16491749]
[1769981182311,0.15677693,2302.7,2301.5,0.16833828]
[1769981182609,2.51718252,2302.9,2301.5,0.16833828]
[1769981182610,0.15677693,2302.5,2301.5,0.00342079]
[1769981182906,0.15677693,2302.3,2301.5,0.00342079]
[1769981185112,0.15677693,2302.3,2300.8,0.16491749]
[1769981185113,2.66399219,2302.1,2300.8,0.16491749]
[1769981185410,0.15677693,2301.9,2300.8,0.16491749]
[1769981186008,0.16010413,2301.9,2300.8,0.16491749]
[1769981186206,0.16010413,2301.9,2300.8,0.16993019]
[1769981186410,0.0033272,2301.9,2300.8,0.16993019]
[1769981186813,0.0033272,2301.9,2300.9,0.16491749]
[1769981187716,0.0033272,2301.9,2301.1,0.16491749]
[1769981188810,0.15677693,2302.4,2301.1,0.16491749]
[1769981189015,3.71135084,2302.3,2301.1,0.16491749]
[1769981189217,0.15677693,2302.4,2301.1,0.16491749]
[1769981189418,3.71117455,2302.3,2301.1,0.16491749]
[1769981189716,0.00484161,2302.3,2301.1,0.16491749]
[1769981189915,0.16161854,2302.3,2301.1,0.16491749]
[1769981190111,0.00484161,2302.3,2301.2,0.16491749]
[1769981190315,0.00484161,2302.3,2301.4,0.16491749]
[1769981190716,0.15677693,2302.9,2301.4,0.16491749]
[1769981191217,0.15677693,2302.9,2301.5,0.16491749]
[1769981191719,0.16061725,2302.9,2301.5,0.16491749]
[1769981192716,0.16061725,2302.9,2301.7,0.16491749]
[1769981193919,0.15677693,2302.7,2301.4,0.16491749]
[1769981194217,0.15677693,2302.5,2301.4,0.16491749]
[1769981194420,0.15677693,2302.3,2301.1,0.16491749]
[1769981194824,0.15677693,2302.1,2301.1,0.16491749]
[1769981197725,0.16296867,2301.9,2300.7,6.461]
[1769981198322,0.16296867,2301.7,2300.8,0.0016855]
[1769981198520,0.16296867,2301.6,2299.9,4.07038582]
[1769981198826,0.16296867,2301.5,2299.9,4.07038582]
[1769981199029,0.16296867,2301.4,2299.9,4.07038582]
[1769981199223,0.16296867,2301.2,2299.9,4.07038582]
[1769981199528,0.16788666,2301.2,2299.9,4.0734484]
[1769981199722,0.16296867,2301.0,2299.9,3.91506258]
[1769981199922,2.67018393,2300.7,2299.3,0.15838582]
[1769981200125,0.16296867,2300.5,2299.0,0.15838582]
[1769981200424,0.16296867,2300.4,2299.0,0.15838582]
[1769981201027,0.16296867,2300.4,2299.0,0.1622293]
[1769981201821,0.16296867,2300.3,2299.0,0.00384348]
[1769981203325,0.16296867,2300.3,2299.0,0.1622293]
[1769981205324,0.16350523,2300.0,2299.0,0.00384348]
[1769981205630,0.16350523,2299.7,2298.4,0.22196456]
[1769981205829,0.16350523,2299.5,2298.4,0.22196456]
[1769981206530,0.16659349,2299.5,2298.4,0.22641013]
[1769981206830,0.16659349,2299.5,2298.5,0.1584927]
[1769981208130,0.00308826,2299.5,2298.5,0.1584927]
[1769981208328,0.00308826,2299.5,2298.6,0.1584927]
[1769981208522,0.16350523,2300.1,2298.8,0.1584927]
[1769981208721,0.16350523,2300.4,2298.9,0.1584927]
[1769981209531,0.16710089,2300.4,2298.9,0.1584927]
[1769981209726,0.16350523,2301.0,2299.3,0.1584927]
[1769981209926,0.16350523,2300.8,2299.2,0.1584927]
[1769981210127,0.16350523,2300.5,2299.2,0.1584927]
[1769981210632,0.00466444,2300.5,2299.2,0.1584927]
[1769981210833,0.00466444,2300.5,2299.4,0.1584927]
[1769981213734,0.17176533,2300.5,2299.4,0.1584927]
[1769981214832,0.16816967,2300.5,2299.4,0.1584927]
[1769981215036,0.00359566,2300.4,2299.4,0.1584927]
[1769981215237,0.16710089,2300.4,2299.4,0.1584927]
[1769981215930,0.00359566,2300.4,2299.4,0.1584927]
[1769981216236,0.16350523,2301.1,2299.9,0.1584927]
[1769981216436,4.07850523,2301.4,2300.0,2.7094927]
[1769981216733,4.07850523,2301.4,2300.1,0.1584927]
[1769981217135,4.08292675,2301.4,2300.1,0.16235473]
[1769981218334,0.16792675,2301.4,2300.1,0.16235473]
[1769981220230,0.16792675,2301.4,2300.3,0.1584927]
[1769981220731,0.00442152,2301.4,2300.5,0.1584927]
[1769981220934,0.16350523,2302.1,2300.5,0.1584927]
[1769981221734,0.16350523,2302.1,2300.6,0.1584927]
[1769981221934,0.16350523,2302.1,2300.3,0.1584927]
[1769981221935,0.16736197,2302.1,2300.3,0.1584927]
[1769981222640,0.16350523,2301.7,2300.1,3.91886203]
[1769981222836,0.16350523,2301.6,2300.1,3.91886203]
[1769981223233,0.16350523,2301.6,2300.1,4.07735473]
[1769981223842,0.16350523,2301.6,2300.2,0.1584927]
[1769981224842,0.16350523,2301.6,2300.3,0.1584927]
[1769981225244,0.16350523,2301.6,2300.4,0.1584927]
[1769981225938,0.16350523,2302.0,2300.6,0.1584927]
[1769981230046,0.16350523,2302.0,2300.7,0.16670997]
[1769981230247,0.00385674,2302.1,2301.3,0.16670997]
[1769981230451,0.16010785,2302.6,2301.3,0.16670997]
[1769981230452,0.16010785,2302.6,2301.4,2.551]
[1769981230652,0.16010785,2302.6,2301.5,0.16670997]
[1769981231353,0.0048569,2302.6,2301.5,0.16670997]
[1769981232253,0.0048569,2302.6,2301.6,0.16670997]
[1769981238256,0.16010785,2303.2,2301.7,0.16670997]
[1769981239154,0.16457868,2303.2,2301.7,0.16670997]
[1769981239759,0.00447083,2303.2,2302.1,0.16670997]